bitfinex/quotes_ETHUSD_20240713
["timestamp","ask_amount","ask_price","bid_price","bid_amount"]
[1720870913879,1.09402439,3166.9,3166.5,2.21058]
[1720870914076,1.09402439,3166.8,3166.5,2.21058]
[1720870914388,1.09402439,3166.7,3166.4,2.3069]
[1720870914881,1.09402439,3166.6,3166.4,2.3069]
[1720870915057,1.09402439,3166.9,3166.4,2.3069]
[1720870915741,4.59799,3167.0,3166.4,2.3069]
[1720870916075,1.09406407,3166.9,3166.4,2.3069]
[1720870916391,2.2105,3166.7,3166.2,7.41]
[1720870916543,1.09407253,3166.6,3166.2,7.41]
[1720870917084,3.30464253,3166.6,3166.2,7.41]
[1720870917277,1.09407253,3166.5,3166.2,7.41]
[1720870918895,1.09407253,3166.6,3166.2,7.41]
[1720870919697,2.2105,3166.7,3166.2,7.41]
[1720870919855,1.09412455,3166.6,3166.2,7.41]
[1720870920055,1.09412455,3166.5,3166.2,7.41]
[1720870920254,1.09412455,3166.4,3166.2,7.41]
[1720870920471,1.09412455,3166.3,3166.2,7.41]
[1720870920781,1.09412455,3166.3,3166.2,3.163348]
[1720870922255,1.09406339,3166.3,3166.2,3.163348]
[1720870922483,1.09406339,3166.3,3166.2,5.374198]
[1720870922682,2.21045,3166.8,3166.2,5.374198]
[1720870922897,1.09405482,3166.7,3166.2,2.3625]
[1720870923103,1.09405482,3166.9,3166.4,2.3625]
[1720870923256,1.09405482,3166.6,3166.5,5.030451]
[1720870923456,1.09405482,3166.6,3166.5,4.57313]
[1720870925295,1.09396288,3166.6,3166.5,6.78376]
[1720870925693,2.2102,3167.2,3166.6,2.21057]
[1720870925864,1.09396269,3167.1,3166.6,2.21057]
[1720870926064,1.09396269,3167.0,3166.6,2.21057]
[1720870926298,1.09396269,3166.9,3166.6,2.21057]
[1720870926602,1.09396269,3166.8,3166.6,2.21057]
[1720870926892,1.09396269,3166.7,3166.6,2.21057]
[1720870927127,1.19995437,3166.7,3166.6,2.21057]
[1720870927300,1.09396269,3166.7,3166.6,2.21057]
[1720870927499,1.09396269,3166.7,3166.6,2.65326369]
[1720870929099,2.2102,3167.2,3166.6,2.65326369]
[1720870929300,1.09393393,3167.1,3166.6,2.21057]
[1720870929633,1.09393393,3167.0,3166.6,2.21057]
[1720870929804,1.09393393,3166.9,3166.6,2.21057]
[1720870930106,1.09393393,3166.8,3166.6,2.21057]
[1720870930267,1.09393393,3166.7,3166.6,2.21057]
[1720870932607,2.21009,3167.3,3166.6,2.21057]
[1720870932768,1.34803395,3167.2,3166.6,2.21057]
[1720870933103,1.19646612,3167.1,3166.6,2.21057]
[1720870933434,1.09397882,3167.0,3166.4,2.21065]
[1720870933892,0.10245715,3166.9,3166.4,2.21065]
[1720870934093,1.09397882,3166.8,3166.4,2.21065]
[1720870934522,0.10242699,3166.7,3166.4,2.21065]
[1720870934702,1.09397882,3166.6,3166.4,2.21065]
[1720870935004,0.10239683,3166.5,3166.4,2.21065]
[1720870935207,1.19637565,3166.5,3166.4,2.21065]
[1720870935829,1.1964349,3166.5,3166.4,2.21065]
[1720870936129,1.19643449,3166.5,3166.4,2.21065]
[1720870939399,0.10239683,3166.5,3166.4,2.21065]
[1720870939820,1.09403551,3166.5,3166.4,2.21065]
[1720870939996,1.1964223,3166.5,3166.4,2.21065]
[1720870942929,1.19640103,3166.5,3166.4,2.21065]
[1720870943355,0.10238679,3166.5,3166.4,2.21065]
[1720870943641,1.09403514,3166.5,3166.4,2.21065]
[1720870943797,1.19642193,3166.5,3166.4,2.21065]
[1720870944677,0.10238679,3166.5,3166.4,2.21065]
[1720870945047,1.09402088,3166.5,3166.4,2.21065]
[1720870945198,1.19640767,3166.5,3166.4,2.21065]
[1720870945403,1.19640767,3166.5,3166.4,2.895849]
[1720870946040,1.19634463,3166.5,3166.4,2.895849]
[1720870946212,0.10238679,3166.5,3166.4,2.895849]
[1720870946413,1.19634452,3166.5,3166.4,2.895849]
[1720870946625,1.09395773,3166.5,3166.4,2.895849]
[1720870946845,1.19634452,3166.5,3166.4,2.895849]
[1720870948645,1.19634452,3166.5,3166.4,2.21065]
[1720870949707,0.10238679,3166.5,3166.4,2.21065]
[1720870950115,1.09401479,3166.5,3166.4,2.21065]
[1720870950314,1.19640158,3166.5,3166.4,2.21065]
[1720870953202,1.19646499,3166.5,3166.4,2.21065]
[1720870953820,1.19646493,3166.5,3166.4,2.21065]
[1720870956356,0.10238679,3166.5,3166.4,2.21065]
[1720870956723,1.19644899,3166.5,3166.4,2.21065]
[1720870956925,1.0940622,3166.5,3166.4,2.21065]
[1720870957142,1.19644473,3166.5,3166.4,2.21065]
[1720870958057,1.19644473,3166.5,3166.3,2.4305]
[1720870958259,1.0940622,3166.4,3165.8,10.28509075]
[1720870958554,1.0940622,3166.4,3166.0,2.21097]
[1720870958764,1.0940622,3166.6,3166.0,2.21097]
[1720870958970,1.0940622,3166.3,3166.0,2.21097]
[1720870959124,1.0940622,3166.2,3166.0,2.21097]
[1720870959327,3.7591442,3166.6,3165.9,3.0]
[1720870959528,1.0940622,3166.5,3165.9,3.0]
[1720870960071,1.09414716,3166.4,3165.9,5.21104]
[1720870960234,1.09414716,3166.3,3165.9,5.21104]
[1720870960439,1.09414716,3166.2,3165.9,5.21104]
[1720870960653,1.09414716,3166.1,3165.9,6.17967604]
[1720870960859,1.09414716,3166.0,3165.9,6.17967604]
[1720870961262,1.09414716,3166.0,3165.9,7.27915718]
[1720870962071,1.09414716,3166.0,3165.9,7.27914904]
[1720870962574,1.09414716,3166.0,3165.9,6.17967604]
[1720870962772,1.09414716,3166.0,3165.9,7.27914694]
[1720870962976,1.09414716,3166.0,3165.9,6.17967604]
[1720870963379,2.21061,3166.6,3166.0,2.21098]
[1720870963577,1.09414545,3166.5,3166.0,2.21098]
[1720870963891,2.21061,3166.6,3166.0,2.21098]
[1720870964053,1.09413007,3166.5,3166.0,2.21098]
[1720870964260,1.09413007,3166.4,3166.0,2.21098]
[1720870964463,1.09413007,3166.3,3166.0,2.21098]
[1720870964796,1.09413007,3166.2,3166.0,2.21098]
[1720870964948,1.09413007,3166.1,3166.0,2.21098]
[1720870965147,1.09413007,3166.5,3166.0,2.21098]
[1720870966676,1.09417756,3166.4,3166.0,2.21098]
[1720870966892,1.09418194,3166.3,3166.0,2.21098]
[1720870967101,2.21061,3166.6,3166.0,2.21098]
[1720870967102,1.09418194,3166.2,3166.0,2.21098]
[1720870967396,1.09418194,3166.5,3166.0,3.195085]
[1720870967582,1.09418194,3166.4,3166.0,2.21098]
[1720870967753,1.09418194,3166.3,3165.8,4.63007]
[1720870967950,1.09418194,3166.2,3165.8,4.63006]
[1720870968154,1.09418194,3166.5,3165.8,4.63006]
[1720870968387,1.65808113,3166.5,3165.8,6.84112]
[1720870968598,1.09418194,3166.4,3165.9,2.21104]
[1720870969156,2.43646068,3166.3,3165.5,2.419]
[1720870969479,2.21092,3166.1,3165.5,2.419]
[1720870969681,1.09418194,3166.0,3165.5,2.419]
[1720870970066,2.21092,3166.1,3165.5,2.419]
[1720870970299,1.09436058,3165.9,3165.5,2.419]
[1720870970453,1.09436058,3165.8,3165.5,2.419]
[1720870970655,1.09436058,3165.7,3165.4,2.2114]
[1720870970857,1.09436058,3165.6,3165.4,2.2114]
[1720870971057,1.09436058,3165.9,3165.4,2.2114]
[1720870971600,1.09436058,3165.9,3165.5,2.21133]
[1720870971799,2.78504926,3166.2,3165.6,2.3145]
[1720870971800,0.10197164,3165.8,3165.6,2.3145]
[1720870971967,1.09436058,3165.7,3165.6,2.3145]
[1720870972600,2.21091,3166.2,3165.6,2.3145]
[1720870972801,1.09424843,3166.1,3165.6,2.3145]
[1720870973096,1.09424843,3166.0,3165.6,2.3145]
[1720870973301,1.09424843,3165.9,3165.6,4.52576]
[1720870973499,2.21091,3166.2,3165.6,4.52576]
[1720870973706,1.09424527,3166.1,3165.6,4.52576]
[1720870973873,2.18849055,3167.8,3165.7,2.3145]
[1720870973874,2.4148,3166.8,3165.7,2.3145]
[1720870974080,1.09416743,3166.7,3166.2,2.3145]
[1720870974282,1.09416743,3166.6,3166.2,4.52532]
[1720870974589,0.10203672,3166.7,3166.4,2.2107]
[1720870974590,1.09416743,3166.5,3166.4,2.2107]
[1720870974823,1.19621992,3166.5,3166.4,2.884302]
[1720870975209,0.10205249,3166.5,3166.4,2.884302]
[1720870975593,4.62488,3167.3,3166.6,2.21056]
[1720870975927,1.19623417,3167.2,3166.6,2.21056]
[1720870976093,1.09393001,3167.1,3166.6,2.21056]
[1720870976601,1.19620525,3167.0,3166.6,2.21056]
[1720870976923,1.09391687,3166.9,3166.7,2.3145]
[1720870977134,1.09391687,3166.8,3166.7,2.3145]
[1720870980453,1.0939072,3166.8,3166.7,2.3145]
[1720870981344,1.0939072,3166.8,3166.7,7.188006]
[1720870981653,0.33044427,3167.6,3167.1,2.21016]
[1720870981812,1.09380586,3167.5,3167.2,2.21014]
[1720870982157,1.19630257,3167.4,3167.2,2.21014]
[1720870982652,0.10249671,3167.4,3167.2,2.21014]
[1720870982826,2.20969,3167.9,3167.2,2.21014]
[1720870982827,1.093769,3167.3,3167.2,2.21014]
[1720870983029,1.19626208,3167.3,3167.2,2.21014]
[1720870983354,1.19626856,3167.3,3167.2,2.21014]
[1720870985652,1.19626241,3167.3,3167.2,2.21014]
[1720870985847,1.19626241,3167.3,3167.0,2.21024]
[1720870986081,1.19626241,3167.3,3167.1,2.2102]
[1720870986256,0.10249308,3167.3,3167.1,2.2102]
[1720870986617,2.20973,3167.8,3167.1,2.2102]
[1720870986848,1.19638635,3167.7,3167.1,2.2102]
[1720870987047,1.09377051,3167.6,3167.1,2.2102]
[1720870987243,1.19637128,3167.6,3167.1,2.2102]
[1720870987454,1.09377051,3167.5,3167.2,2.3145]
[1720870988062,0.10257062,3167.4,3167.2,2.3145]
[1720870988570,0.10257062,3167.4,3167.3,2.21008]
[1720870988734,2.74528716,3168.0,3167.3,2.21008]
[1720870988934,1.09367608,3167.9,3167.3,2.21008]
[1720870989152,1.09367608,3167.8,3167.3,2.21008]
[1720870989352,1.09367608,3167.7,3167.3,2.21008]
[1720870989574,0.10264051,3167.7,3167.3,2.21008]
[1720870989896,2.74528716,3168.0,3167.3,2.21008]
[1720870989897,1.09366589,3167.6,3167.3,2.21008]
[1720870990065,1.19620826,3167.6,3167.3,2.21008]
[1720870990363,0.10254237,3167.6,3167.3,2.21008]
[1720870990767,4.95487716,3168.0,3167.3,2.21008]
[1720870990926,0.1025273,3167.5,3167.3,2.21008]
[1720870991126,4.95487716,3168.0,3167.3,2.21008]
[1720870991427,1.09365084,3167.9,3167.3,2.21008]
[1720870991629,1.19622336,3167.8,3167.3,2.21008]
[1720870991829,1.09365084,3167.7,3167.3,2.21008]
[1720870992140,0.10254237,3167.6,3167.3,2.21008]
[1720870992838,4.95487716,3168.0,3167.3,2.21008]
[1720870993150,1.19627493,3167.9,3167.3,2.21008]
[1720870993354,1.09369207,3167.8,3167.3,2.21008]
[1720870993549,1.09369164,3167.7,3167.3,2.21008]
[1720870993762,0.10255272,3167.7,3167.3,2.21008]
[1720870994337,4.95487716,3168.0,3167.3,2.21008]
[1720870994543,0.10253764,3167.6,3167.3,2.21008]
[1720870994739,4.95487716,3168.0,3167.3,2.21008]
[1720870994939,0.1024878,3167.5,3167.3,2.21008]
[1720870995133,2.20967,3167.9,3167.3,2.21008]
[1720870995340,0.10247272,3167.4,3167.2,2.3145]
[1720870995564,0.10247272,3167.4,3166.9,4.58894]
[1720870995882,0.33048716,3168.0,3166.8,7.41]
[1720870995883,1.09385952,3167.3,3166.8,7.41]
[1720870996050,1.09385952,3167.2,3166.8,7.41]
[1720870996256,0.1025088,3167.2,3166.8,7.41]
[1720870996452,4.50055,3167.5,3166.8,7.41]
[1720870996637,1.7649115,3167.4,3166.8,7.41]
[1720870996842,1.0938635,3167.3,3166.8,7.41]
[1720870997075,0.1025088,3167.2,3166.8,7.41]
[1720870997337,1.0938635,3167.1,3166.8,7.41]
[1720870997567,2.21029,3167.0,3166.3,2.21075]
[1720870997768,1.0938635,3166.9,3166.3,5.21075]
[1720870998746,1.0938635,3166.9,3166.3,2.21075]
[1720870999357,1.0938635,3166.9,3166.2,3.99935]
[1720870999685,1.0938635,3166.9,3166.3,2.21073]
[1720870999983,2.21029,3167.0,3166.3,2.21073]
[1720871000149,1.09405216,3166.9,3166.3,2.21073]
[1720871000349,1.09405216,3166.8,3166.3,2.21073]
[1720871000545,1.09405216,3166.7,3166.3,2.21073]
[1720871000750,2.65234,3167.0,3166.3,2.21073]
[1720871000984,1.09404567,3166.9,3166.3,2.21073]
[1720871001179,1.09404567,3166.8,3166.3,2.21073]
[1720871001853,1.09404567,3166.7,3166.3,2.21073]
[1720871002080,1.09404567,3166.9,3166.3,2.21073]
[1720871002292,1.1962195,3166.6,3166.3,2.21073]
[1720871002464,1.09404567,3166.5,3166.3,2.21073]
[1720871003097,1.09404567,3166.9,3166.3,2.21073]
[1720871003244,0.10214366,3166.4,3166.3,2.21073]
[1720871003453,2.21029,3167.0,3166.3,2.21073]
[1720871003683,0.10221908,3166.9,3166.3,2.21073]
[1720871003887,1.19626889,3166.9,3166.3,2.21073]
[1720871004090,1.09404981,3166.8,3166.3,2.21073]
[1720871004464,1.09404981,3166.9,3166.3,2.21073]
[1720871004679,0.10218892,3166.7,3166.3,2.21073]
[1720871005082,1.09405222,3166.6,3166.3,2.83883752]
[1720871005262,4.42042,3167.2,3166.3,2.21073]
[1720871005592,3.30417998,3167.1,3166.3,2.21073]
[1720871005918,1.1962402,3167.0,3166.3,2.21073]
[1720871006062,1.09395998,3166.9,3166.3,2.21073]
[1720871006394,0.10226514,3166.9,3166.3,4.42145]
[1720871006594,1.09395418,3166.8,3166.3,5.08721228]
[1720871006779,1.09396556,3166.8,3166.4,2.21069]
[1720871007102,1.19620054,3166.7,3166.3,2.21072]
[1720871007251,1.09396556,3166.6,3166.3,2.21072]
[1720871007453,2.21029,3167.0,3166.3,2.21072]
[1720871007454,1.09396556,3166.9,3166.3,2.21072]
[1720871007652,1.19627506,3166.8,3166.3,2.21072]
[1720871007883,1.09400927,3166.7,3166.3,2.21072]
[1720871008079,1.09400927,3166.9,3166.3,2.21072]
[1720871008290,0.10223563,3166.6,3166.3,2.21072]
[1720871008498,2.21029,3167.0,3166.3,3.290677]
[1720871008724,1.09400938,3166.9,3166.4,2.21071]
[1720871008897,1.09400938,3166.8,3166.4,2.21071]
[1720871009098,1.09400938,3166.7,3166.5,2.21059]
[1720871009293,4.42012,3167.4,3166.6,4.5891]
[1720871009618,1.09392168,3167.3,3166.6,4.5891]
[1720871009805,1.09392168,3167.2,3166.6,4.5891]
[1720871010179,2.21004,3167.4,3166.6,4.5891]
[1720871010180,1.09391618,3167.1,3166.6,4.5891]
[1720871010417,1.09391618,3167.0,3166.6,5.269069]
[1720871010623,1.09391618,3167.3,3166.6,5.269069]
[1720871010782,1.09391618,3167.3,3166.6,4.5891]
[1720871011207,1.09391618,3167.3,3166.8,2.2104]
[1720871011431,1.09391618,3167.4,3166.8,2.2104]
[1720871011721,1.09391618,3167.3,3166.9,2.21035]
[1720871011904,1.09391618,3167.2,3166.9,2.21035]
[1720871012105,1.09391618,3167.1,3166.9,2.21035]
[1720871012305,1.09391618,3167.0,3166.9,2.6983194]
[1720871012496,2.20996,3167.5,3166.9,2.6983194]
[1720871012705,1.09380755,3167.4,3166.9,2.21035]
[1720871012883,1.09380755,3167.3,3166.9,2.21035]
[1720871013085,1.09380755,3167.5,3166.9,2.21035]
[1720871013420,0.33048502,3167.6,3166.9,2.21035]
[1720871013588,1.09381243,3167.4,3166.9,2.21035]
[1720871013933,1.09381243,3167.3,3166.9,2.21035]
[1720871014128,2.54035502,3167.6,3166.9,2.21035]
[1720871014334,1.09380945,3167.5,3166.9,2.21035]
[1720871014621,1.09380945,3167.4,3166.9,2.21035]
[1720871014790,1.09380945,3167.5,3166.9,2.21035]
[1720871016411,3.24616652,3167.6,3166.9,2.21035]
[1720871016592,1.09381661,3167.5,3166.9,2.21035]
[1720871016794,1.09381661,3167.4,3166.9,2.21035]
[1720871017017,1.09382281,3167.3,3166.9,2.21035]
[1720871017237,3.24616652,3167.6,3166.9,2.21035]
[1720871017238,1.09382281,3167.2,3166.9,2.21035]
[1720871017432,1.09382281,3167.1,3166.9,2.21035]
[1720871017595,1.09382024,3167.0,3166.9,2.21035]
[1720871018495,1.09382024,3167.0,3166.7,2.21044]
[1720871018834,1.09382024,3166.9,3166.7,4.42088]
[1720871019133,1.09382024,3166.8,3166.7,2.21044]
[1720871019429,1.09382024,3167.4,3166.8,2.21042]
[1720871019599,1.42427913,3167.3,3166.8,2.21042]
[1720871019952,1.09390211,3167.2,3166.8,2.21042]
[1720871020443,0.33037702,3167.3,3166.8,2.21042]
[1720871020597,1.09390695,3167.2,3166.8,2.21042]
[1720871020937,1.09390695,3167.1,3166.8,2.21042]
[1720871021235,1.09390695,3167.1,3166.6,10.79903]
[1720871021663,1.09390695,3167.1,3166.6,8.58846]
[1720871022145,1.09390695,3167.1,3166.6,10.79898]
[1720871022505,1.09390695,3167.1,3166.6,6.79963]
[1720871023045,1.29178741,3167.1,3166.6,2.21051]
[1720871023254,1.09390695,3167.0,3166.6,2.21051]
[1720871023454,1.09390695,3167.0,3166.4,4.52908]
[1720871023747,4.51835,3167.0,3166.2,8.52857]
[1720871023955,1.56565606,3166.9,3166.3,3.0]
[1720871024142,1.09403301,3166.8,3166.3,3.0]
[1720871024443,1.09403301,3166.7,3166.3,3.0]
[1720871024643,1.09403301,3166.6,3166.3,3.0]
[1720871024854,1.09403301,3166.8,3166.3,3.0]
[1720871025030,1.09403301,3166.7,3166.3,3.0]
[1720871025213,1.09403301,3166.6,3166.3,3.0]
[1720871025556,1.09403301,3166.5,3166.3,3.0]
[1720871025853,1.09403301,3166.4,3166.3,3.0]
[1720871026214,1.09403301,3166.4,3166.3,4.11177814]
[1720871026529,2.21008,3167.3,3166.5,2.2106]
[1720871026861,1.09390272,3167.2,3166.6,2.3184]
[1720871027213,1.09387592,3167.1,3166.6,2.3184]
[1720871027408,1.09387592,3167.0,3166.6,2.7713]
[1720871027713,1.09387592,3166.9,3166.6,2.7713]
[1720871028029,1.09387592,3166.8,3166.6,4.98186]
[1720871028230,1.09387592,3166.7,3166.6,4.98186]
[1720871031652,1.09387592,3166.7,3166.6,7.19243]
[1720871031864,2.20996,3167.5,3166.8,2.21039]
[1720871032032,1.09380871,3167.4,3166.8,2.21039]
[1720871032218,1.09380871,3167.3,3166.8,2.21039]
[1720871032528,0.10079289,3167.2,3166.8,2.21039]
[1720871032726,1.09380871,3167.1,3166.8,2.21039]
[1720871033050,1.19457144,3167.0,3166.8,2.21039]
[1720871033257,1.09380871,3166.9,3166.8,2.21039]
[1720871033552,1.19455637,3166.9,3166.8,2.21039]
[1720871033855,1.19455637,3166.9,3166.8,2.73733424]
[1720871034052,0.10074766,3166.9,3166.8,2.73733424]
[1720871034356,1.09383217,3167.4,3166.8,2.73733424]
[1720871034660,1.19462317,3167.3,3166.8,2.21039]
[1720871034860,1.09381521,3167.2,3166.8,2.21039]
[1720871035353,0.10077781,3167.1,3166.8,2.21039]
[1720871035552,1.09381521,3167.0,3166.8,2.21039]
[1720871035864,1.19456287,3166.9,3166.8,2.21039]
[1720871037018,1.1945936,3166.9,3166.8,2.21039]
[1720871037454,0.10074766,3166.9,3166.8,2.21039]
[1720871037838,1.09384703,3166.9,3166.8,2.21039]
[1720871038057,1.19462759,3166.9,3166.8,2.21039]
[1720871040756,1.19461775,3166.9,3166.8,2.21039]
[1720871043369,0.10078056,3166.9,3166.6,4.52891]
[1720871043527,1.09393766,3167.1,3166.6,4.52891]
[1720871043732,0.09729876,3166.8,3166.6,4.52891]
[1720871044033,1.09395643,3166.7,3166.6,4.52891]
[1720871044363,1.09395643,3166.7,3166.4,2.21067]
[1720871044581,1.09395643,3166.6,3166.4,2.21067]
[1720871044791,1.09395643,3167.0,3166.4,2.21067]
[1720871045067,1.48165425,3166.9,3166.4,2.21067]
[1720871045253,1.09395643,3166.8,3166.4,2.21067]
[1720871045968,0.09730371,3166.7,3166.4,2.21067]
[1720871046167,1.09395643,3166.6,3166.4,2.21067]
[1720871046396,1.09401918,3166.8,3166.4,2.21067]
[1720871046568,0.38769782,3166.9,3166.4,2.21067]
[1720871046766,1.19133909,3166.8,3166.4,2.21067]
[1720871046972,1.0940203,3166.7,3166.4,2.21067]
[1720871047167,0.09728863,3166.6,3166.4,2.21067]
[1720871047369,1.0940203,3166.5,3166.4,2.21067]
[1720871047905,1.0940203,3166.8,3166.4,2.21067]
[1720871048046,1.0940203,3166.5,3166.4,2.21067]
[1720871048755,1.0940203,3166.9,3166.4,2.21067]
[1720871048956,1.19133909,3166.8,3166.4,2.21067]
[1720871049184,1.0940203,3166.7,3166.4,2.21067]
[1720871049384,0.09728863,3166.6,3166.4,2.21067]
[1720871049558,1.0940203,3166.5,3166.4,2.21067]
[1720871049761,1.0940203,3166.9,3166.4,2.21067]
[1720871050051,1.19137241,3166.8,3166.4,2.21067]
[1720871050299,1.09405362,3166.7,3166.4,2.21067]
[1720871050601,0.09724716,3166.6,3166.4,2.21067]
[1720871050900,1.09405362,3166.5,3166.4,2.21067]
[1720871051262,1.09405362,3166.5,3166.3,3.0]
[1720871051680,1.09405362,3166.9,3166.3,5.21076]
[1720871053487,2.21029,3167.0,3166.3,5.21076]
[1720871053693,1.09403968,3166.8,3166.3,5.21076]
[1720871054295,1.09403795,3166.7,3166.3,5.21076]
[1720871054599,1.09403795,3166.6,3166.3,5.21076]
[1720871054789,1.09403795,3166.5,3166.3,5.21076]
[1720871054986,1.09403795,3166.7,3166.3,5.21076]
[1720871055188,1.09403795,3166.4,3166.3,5.21076]
[1720871055392,1.09403795,3166.4,3166.3,6.588491]
[1720871056509,1.09403968,3166.8,3166.3,6.588491]
[1720871056680,1.09401984,3166.7,3166.3,5.21076]
[1720871056882,1.09403968,3166.8,3166.3,5.21076]
[1720871057066,1.09401105,3166.7,3166.3,5.21076]
[1720871057267,1.09401105,3166.6,3166.3,5.21076]
[1720871057468,1.09401105,3166.5,3166.3,5.21076]
[1720871057667,1.09401105,3166.7,3166.3,6.588491]
[1720871057904,1.09401105,3166.7,3166.3,5.21076]
[1720871060410,1.09403968,3166.8,3166.3,5.21076]
[1720871060703,1.09399803,3166.7,3166.4,2.21069]
[1720871060904,1.09399803,3166.7,3166.5,2.2567]
[1720871061074,1.09399803,3166.7,3166.5,3.003439]
[1720871061907,1.09399803,3166.7,3166.5,5.214069]
[1720871062520,1.09399803,3166.7,3166.6,4.46727]
[1720871063411,2.21001,3167.4,3166.7,2.21046]
[1720871063596,1.09384019,3167.3,3166.7,2.21046]
[1720871063804,1.18775613,3167.2,3166.7,2.21046]
[1720871063997,1.09384055,3167.1,3166.7,2.21046]
[1720871064174,0.09388542,3167.0,3166.7,2.21046]
[1720871064378,1.09384119,3166.9,3166.7,2.21046]
[1720871064627,1.09384119,3166.8,3166.7,2.9529129]
[1720871064910,1.09384119,3166.8,3166.7,5.2096129]
[1720871065106,2.54035502,3167.6,3166.8,2.21036]
[1720871065267,1.187762,3167.5,3166.8,2.21036]
[1720871065473,1.09378791,3167.4,3166.8,2.21036]
[1720871065695,1.18773185,3167.3,3166.8,2.21036]
[1720871065885,1.09378791,3167.2,3166.9,2.21035]
[1720871066084,1.18770169,3167.1,3166.9,2.21035]
[1720871066295,1.09378791,3167.0,3166.9,2.21035]
[1720871066502,1.18768661,3167.0,3166.9,2.21035]
[1720871066922,0.0938987,3167.0,3166.9,2.21035]
[1720871067214,2.54035502,3167.6,3166.9,2.21035]
[1720871067511,1.59725824,3167.5,3166.9,2.21035]
[1720871067694,1.18775175,3167.4,3166.9,2.21035]
[1720871068010,1.09379274,3167.3,3166.9,2.21035]
[1720871068208,1.09379274,3167.2,3166.9,2.21035]
[1720871068406,1.09379274,3167.1,3166.9,2.21035]
[1720871068613,0.09392886,3167.2,3166.9,2.21035]
[1720871068614,1.09379274,3167.0,3166.9,2.21035]
[1720871068823,1.18769144,3167.0,3166.9,2.21035]
[1720871069233,1.18769144,3167.0,3166.9,4.46705]
[1720871069529,1.18769144,3167.0,3166.9,7.345161]
[1720871069684,1.09379274,3167.0,3166.9,7.345161]
[1720871070388,2.20973,3167.8,3167.1,2.21019]
[1720871070623,0.09407002,3167.7,3167.1,2.21019]
[1720871070824,1.18782213,3167.7,3167.1,2.21019]
[1720871070988,1.09375211,3167.6,3167.1,2.21019]
[1720871071192,0.09401321,3167.5,3167.1,2.21019]
[1720871071405,1.09375211,3167.4,3167.1,2.21019]
[1720871071831,0.09398306,3167.3,3167.1,2.21019]
[1720871072032,1.09375211,3167.2,3167.1,2.21019]
[1720871072503,1.09375211,3167.7,3167.1,2.21019]
[1720871072844,0.09402828,3167.6,3167.1,2.21019]
[1720871073005,1.09375211,3167.5,3167.1,2.21019]
[1720871073210,0.09399813,3167.4,3167.1,2.21019]
[1720871073544,1.09375211,3167.3,3167.1,2.21019]
[1720871073752,0.09396798,3167.2,3167.1,2.21019]
[1720871073912,1.09375211,3167.3,3167.1,2.21019]
[1720871074241,1.18772452,3167.2,3167.1,2.21019]
[1720871074541,1.09375654,3167.2,3167.1,2.21019]
[1720871074712,1.09376293,3167.2,3167.1,2.21019]
[1720871077000,1.09377322,3167.2,3167.1,2.21019]
[1720871077442,1.18457239,3167.2,3167.1,2.21019]
[1720871077614,1.18460643,3167.2,3167.1,2.21019]
[1720871080947,0.09079917,3167.2,3167.1,2.21019]
[1720871081244,1.09377158,3167.6,3167.1,2.21019]
[1720871081538,0.09087443,3167.5,3167.1,2.21019]
[1720871081704,1.09377158,3167.4,3167.1,2.21019]
[1720871081908,1.18461586,3167.3,3167.1,2.21019]
[1720871082141,1.09377158,3167.2,3167.1,2.21019]
[1720871082307,1.18307745,3167.2,3167.1,2.21019]
[1720871084557,1.18310801,3167.2,3167.1,2.21019]
[1720871085051,1.18310898,3167.2,3167.1,2.21019]
[1720871087613,1.18311797,3167.2,3167.1,2.21019]
[1720871087829,0.08930587,3167.2,3167.1,2.21019]
[1720871088241,1.09378911,3167.2,3167.1,2.21019]
[1720871088414,1.18309261,3167.2,3167.1,2.21019]
[1720871090560,1.18309261,3167.2,3166.9,6.67735]
[1720871090753,1.09378911,3167.1,3167.0,2.21027]
[1720871091115,0.56940816,3167.6,3167.0,2.21027]
[1720871091116,1.09378911,3167.5,3167.0,2.21027]
[1720871091372,1.18160452,3167.4,3167.0,2.21027]
[1720871091563,1.09380982,3167.3,3167.0,2.21027]
[1720871091862,0.08776454,3167.2,3167.0,2.21027]
[1720871092017,1.09380982,3167.1,3167.0,2.21027]
[1720871094851,1.09379976,3167.1,3167.0,2.21027]
[1720871097858,1.09379734,3167.1,3167.0,2.21027]
[1720871098265,1.09379719,3167.1,3167.0,2.21027]
[1720871101066,1.09379288,3167.1,3167.0,2.21027]
[1720871103226,1.18149614,3167.1,3167.0,2.21027]
[1720871104081,1.18149614,3167.1,3166.6,2.352]
[1720871104282,1.18149614,3167.1,3166.5,2.21058]
[1720871104283,3.57545543,3167.0,3166.4,3.99935]
[1720871104501,1.09395549,3166.9,3166.4,3.99935]
[1720871104684,1.09395549,3166.8,3166.4,3.99935]
[1720871104990,1.18159618,3166.7,3166.4,3.99935]
[1720871105310,1.09392605,3166.6,3166.4,3.99935]
[1720871105623,1.09392605,3166.6,3166.4,6.21004]
[1720871105624,0.08763996,3166.5,3166.4,6.21004]
[1720871105922,1.09392605,3166.5,3166.4,9.21004]
[1720871106108,1.09392605,3166.9,3166.4,9.21004]
[1720871106302,0.08756131,3166.5,3166.4,9.21004]
[1720871106481,1.09392605,3166.5,3166.4,9.21004]
[1720871106682,1.18148736,3166.5,3166.4,6.99935]
[1720871107126,1.09392605,3166.5,3166.4,6.99935]
[1720871107287,1.09402761,3166.5,3166.4,6.99935]
[1720871107484,1.09402755,3166.5,3166.4,6.99935]
[1720871108824,1.09402755,3166.5,3166.3,2.21077]
[1720871108980,1.09402755,3166.4,3166.3,2.21077]
[1720871110928,4.69194,3167.0,3166.3,2.21077]
[1720871111116,1.09397318,3166.9,3166.3,2.21077]
[1720871111422,1.09397318,3166.8,3166.3,2.21077]
[1720871111626,1.18157698,3166.7,3166.3,2.21077]
[1720871111929,1.09397318,3166.6,3166.3,2.21077]
[1720871112110,1.09397318,3166.5,3166.3,2.21077]
[1720871112314,0.08757364,3166.5,3166.3,2.21077]
[1720871112525,0.08757364,3166.5,3166.3,2.888136]
[1720871112823,4.69194,3167.0,3166.3,2.888136]
[1720871113026,1.1816004,3166.9,3166.3,2.21077]
[1720871113186,1.09397788,3166.8,3166.3,2.21077]